bitfinex/quotes_BTCUSD_20250224
["timestamp","ask_amount","ask_price","bid_price","bid_amount"]
[1740413817430,0.158096,94879.0,94878.0,0.07912991]
[1740413817641,0.158096,94879.0,94878.0,0.00012991]
[1740413818520,0.159096,94879.0,94878.0,0.00512991]
[1740413818935,0.158096,94879.0,94878.0,0.00012991]
[1740413819144,0.18624956,94879.0,94878.0,0.00012991]
[1740413819696,0.24250293,94879.0,94878.0,0.00012991]
[1740413819910,0.18624956,94879.0,94878.0,0.00012991]
[1740413820110,0.18851505,94879.0,94878.0,0.00012991]
[1740413820329,0.33851505,94879.0,94878.0,0.00012991]
[1740413820527,0.33724956,94879.0,94878.0,0.00012991]
[1740413821249,0.43889525,94879.0,94878.0,0.00012991]
[1740413821599,0.52394268,94879.0,94878.0,0.00012991]
[1740413821854,0.52494268,94879.0,94878.0,0.00012991]
[1740413822102,0.53848353,94879.0,94878.0,0.00012991]
[1740413822369,0.53948353,94879.0,94878.0,0.00012991]
[1740413822577,0.53948353,94879.0,94855.0,0.0016974]
[1740413822578,0.16454085,94876.0,94841.0,0.12359237]
[1740413822785,0.158157,94842.0,94841.0,0.12402488]
[1740413823002,0.158157,94842.0,94841.0,0.04773251]
[1740413823214,0.158157,94842.0,94841.0,0.00043251]
[1740413823417,0.158157,94842.0,94841.0,0.00128171]
[1740413823646,0.15942249,94842.0,94841.0,0.00128171]
[1740413823844,0.158157,94842.0,94841.0,0.00128171]
[1740413824062,0.159157,94842.0,94841.0,0.00128171]
[1740413824732,0.2172468,94842.0,94841.0,0.00128171]
[1740413825361,0.159157,94842.0,94841.0,0.00128171]
[1740413825600,0.16142249,94842.0,94841.0,0.00128171]
[1740413825813,0.160157,94842.0,94841.0,0.00128171]
[1740413826501,0.41280269,94842.0,94841.0,0.00128171]
[1740413827320,0.41180269,94842.0,94841.0,0.00128171]
[1740413827524,0.51344838,94842.0,94841.0,0.00128171]
[1740413827729,0.00878019,94842.0,94841.0,0.00128171]
[1740413827959,0.002,94842.0,94841.0,0.00128171]
[1740413828177,0.16142249,94842.0,94841.0,0.00128171]
[1740413828584,0.160157,94842.0,94841.0,0.00128171]
[1740413829284,0.159157,94842.0,94841.0,0.00128171]
[1740413830128,0.160157,94842.0,94841.0,0.00128171]
[1740413830962,0.21913793,94842.0,94841.0,0.00128171]
[1740413831161,0.32178362,94842.0,94841.0,0.00128171]
[1740413831395,0.47178362,94842.0,94841.0,0.00128171]
[1740413831595,0.41280269,94842.0,94841.0,0.00128171]
[1740413831803,0.42734354,94842.0,94841.0,0.00128171]
[1740413832322,0.41180269,94842.0,94841.0,1e-08]
[1740413832533,0.50590068,94842.0,94841.0,1e-08]
[1740413832744,0.50490068,94842.0,94841.0,1e-08]
[1740413832955,0.308172,94833.0,94832.0,0.01427501]
[1740413833169,0.41125052,94833.0,94832.0,0.01427501]
[1740413833373,0.50909412,94833.0,94832.0,0.01427501]
[1740413833577,0.308187,94824.0,94823.0,0.001701]
[1740413833755,0.41083269,94824.0,94823.0,0.001701]
[1740413833980,0.26083269,94824.0,94823.0,0.001701]
[1740413834596,0.27537354,94824.0,94823.0,0.001701]
[1740413834973,0.27937354,94824.0,94823.0,0.001701]
[1740413835200,0.37018359,94824.0,94823.0,0.001701]
[1740413835418,0.36618359,94824.0,94823.0,0.001701]
[1740413835630,0.26857129,94824.0,94823.0,0.001701]
[1740413835844,0.42257129,94824.0,94823.0,0.001701]
[1740413837096,0.41857129,94824.0,94823.0,0.001701]
[1740413837506,0.3159256,94824.0,94823.0,0.001701]
[1740413837719,0.0603,94865.0,94824.0,0.0759]
[1740413837916,0.158186,94825.0,94824.0,0.0759]
[1740413838347,0.0603,94865.0,94824.0,0.1251]
[1740413838555,0.210903,94831.0,94828.0,0.08435126]
[1740413838762,0.210903,94831.0,94823.0,0.001701]
[1740413838763,0.04348897,94830.0,94823.0,0.001701]
[1740413839000,0.15,94824.0,94807.0,0.0492]
[1740413839202,0.158221,94804.0,94803.0,0.0078]
[1740413840540,0.15865356,94804.0,94803.0,0.0078]
[1740413840957,0.30865356,94804.0,94803.0,0.0078]
[1740413841161,0.41129925,94804.0,94803.0,0.0078]
[1740413841387,0.4359819,94804.0,94803.0,0.0078]
[1740413842381,0.4349819,94804.0,94803.0,0.0078]
[1740413842557,0.4359819,94804.0,94803.0,0.0078]
[1740413844875,0.4349819,94804.0,94803.0,0.0078]
[1740413846507,0.7614819,94804.0,94803.0,0.0078]
[1740413846713,0.77602275,94804.0,94803.0,0.0078]
[1740413846922,0.308241,94792.0,94791.0,0.00029001]
[1740413847129,0.41088669,94792.0,94791.0,0.00018002]
[1740413848210,0.32279485,94784.0,94783.0,0.00067008]
[1740413848425,0.32279485,94784.0,94753.0,0.0828]
[1740413848426,0.158304,94754.0,94753.0,0.0828]
[1740413849641,0.15873603,94754.0,94753.0,0.0828]
[1740413850046,0.18249688,94754.0,94753.0,0.0828]
[1740413850960,0.158308,94752.0,94743.0,0.0461]
[1740413851383,0.634808,94752.0,94737.0,0.014315]
[1740413851789,0.41095369,94752.0,94737.0,0.014315]
[1740413851966,0.308308,94752.0,94737.0,0.014315]
[1740413852185,0.309308,94752.0,94737.0,0.014315]
[1740413852588,0.41095369,94752.0,94737.0,0.014315]
[1740413852793,0.211093,94745.0,94737.0,0.012666]
[1740413853004,0.211093,94745.0,94737.0,0.000849]
[1740413853005,0.211105,94740.0,94737.0,0.000849]
[1740413853204,0.158331,94738.0,94737.0,0.000849]
[1740413853661,0.15959649,94738.0,94737.0,0.000849]
[1740413854339,0.17413734,94738.0,94737.0,0.000849]
[1740413854556,0.26224218,94738.0,94737.0,0.000849]
[1740413854726,0.26097669,94738.0,94737.0,0.000849]
[1740413855467,0.41197669,94738.0,94737.0,0.000849]
[1740413855911,0.41097669,94738.0,94737.0,0.000849]
[1740413856061,0.41197669,94738.0,94737.0,0.000849]
[1740413857387,0.158331,94738.0,94737.0,0.000849]
[1740413857703,0.159331,94738.0,94737.0,0.000849]
[1740413858032,0.158329,94740.0,94737.0,0.000849]
[1740413858181,0.159331,94738.0,94737.0,0.000849]
[1740413858382,0.001,94738.0,94737.0,0.000849]
[1740413858586,0.158323,94743.0,94737.0,0.000849]
[1740413858788,0.02419288,94754.0,94740.0,0.33772552]
[1740413858990,0.02419288,94754.0,94740.0,0.33672552]
[1740413859152,0.158316,94747.0,94740.0,0.33672552]
[1740413859357,0.158318,94746.0,94740.0,0.33672552]
[1740413859620,0.158318,94746.0,94737.0,0.0016994]
[1740413859810,0.02419288,94754.0,94737.0,0.0016994]
[1740413860130,0.158322,94744.0,94737.0,0.0016994]
[1740413860280,0.158331,94738.0,94737.0,0.0016994]
[1740413860498,0.158327,94741.0,94737.0,0.0016994]
[1740413860705,0.02545837,94754.0,94737.0,0.0016994]
[1740413860981,0.02419288,94754.0,94737.0,0.0016994]
[1740413861191,0.02419288,94754.0,94738.0,0.10264569]
[1740413861376,0.02419288,94754.0,94746.0,0.08443896]
[1740413861784,0.02419288,94754.0,94746.0,0.07043896]
[1740413861996,0.158307,94753.0,94746.0,0.07043896]
[1740413862195,0.211075,94753.0,94746.0,0.07043896]
[1740413862400,0.02419288,94754.0,94746.0,0.07043896]
[1740413862605,0.18349888,94754.0,94746.0,0.07043896]
[1740413862812,0.158331,94738.0,94737.0,0.0016994]
[1740413863007,0.158329,94740.0,94737.0,0.0016994]
[1740413863221,0.158319,94746.0,94737.0,0.0016994]
[1740413863443,0.0254046,94754.0,94737.0,0.0016994]
[1740413863649,0.158324,94742.0,94737.0,0.0016994]
[1740413863846,0.158323,94743.0,94737.0,0.0016994]
[1740413864076,0.158326,94741.0,94737.0,0.0016994]
[1740413864283,0.001,94738.0,94737.0,0.0016994]
[1740413864457,0.159331,94738.0,94737.0,0.0016994]
[1740413864766,0.158331,94738.0,94737.0,0.0016994]
[1740413865181,0.001,94742.0,94737.0,0.0016994]
[1740413865392,0.001,94742.0,94737.0,0.0026994]
[1740413865605,0.001,94738.0,94737.0,0.0026994]
[1740413865803,0.001,94738.0,94737.0,0.0016994]
[1740413867244,0.002,94738.0,94737.0,0.0016994]
[1740413867468,0.158326,94741.0,94737.0,0.0016994]
[1740413867668,0.0244046,94754.0,94737.0,0.0016994]
[1740413867844,0.159331,94738.0,94737.0,0.0016994]
[1740413868054,0.309331,94738.0,94737.0,0.0016994]
[1740413868437,0.310331,94738.0,94737.0,0.0016994]
[1740413868642,0.41097669,94738.0,94737.0,0.0016994]
[1740413868849,0.41877817,94738.0,94737.0,0.0016994]
[1740413869052,0.52242386,94738.0,94737.0,0.0016994]
[1740413869951,0.41977817,94738.0,94737.0,0.0016994]
[1740413870311,0.43331902,94738.0,94737.0,0.0016994]
[1740413870490,0.43431902,94738.0,94737.0,0.0016994]
[1740413871221,0.41977817,94738.0,94737.0,0.0016994]
[1740413871425,0.42949817,94738.0,94737.0,0.0016994]
[1740413871604,0.53314386,94738.0,94737.0,0.0016994]
[1740413871818,0.53214386,94738.0,94737.0,0.0016994]
[1740413875172,0.54668471,94738.0,94737.0,4e-07]
[1740413875382,0.158363,94719.0,94709.0,0.0811]
[1740413876547,0.15879476,94719.0,94709.0,0.0811]
[1740413877783,0.15879476,94719.0,94710.0,0.08443896]
[1740413877784,0.00043176,94719.0,94710.0,0.08443896]
[1740413877980,0.00143176,94719.0,94710.0,0.08443896]
[1740413878188,0.15979476,94719.0,94710.0,0.08443896]
[1740413878802,0.00143176,94719.0,94712.0,0.211165]
[1740413878999,0.00143176,94719.0,94710.0,0.08443896]
[1740413879402,0.00043176,94719.0,94712.0,0.158374]
[1740413879610,0.00043176,94719.0,94710.0,0.08443896]
[1740413879611,0.00043176,94719.0,94718.0,0.1235]
[1740413879816,0.00143176,94719.0,94718.0,0.281864]
[1740413880015,0.00143176,94719.0,94718.0,0.38450969]
[1740413880220,0.02362072,94771.0,94718.0,0.38450969]
[1740413880221,0.02362072,94771.0,94730.0,0.0781]
[1740413880426,0.00793513,94762.0,94732.0,0.0781]
[1740413880632,0.211084,94749.0,94734.0,0.0818]
[1740413880841,0.00939823,94769.0,94734.0,0.0818]
[1740413880842,0.00813274,94769.0,94734.0,0.0808]
[1740413881047,0.2127928,94746.0,94734.0,0.0808]
[1740413881266,0.211104,94740.0,94734.0,0.0808]
[1740413881463,0.09531135,94742.0,94734.0,0.0808]
[1740413881666,0.158336,94735.0,94734.0,0.0808]
[1740413883091,0.09531135,94742.0,94734.0,0.0828]
[1740413883405,0.158336,94735.0,94734.0,0.0808]
[1740413883611,0.159336,94735.0,94734.0,0.0838]
[1740413884013,0.158363,94719.0,94718.0,0.05008041]
[1740413884709,0.158363,94719.0,94718.0,0.13208041]
[1740413886167,0.00795656,94740.0,94718.0,0.13208041]
[1740413886372,0.001,94719.0,94718.0,0.13408041]
[1740413886592,0.001,94719.0,94718.0,0.3950901]
[1740413887000,0.158338,94734.0,94722.0,0.158357]
[1740413887373,0.158334,94736.0,94723.0,0.158356]
[1740413887669,0.2111,94742.0,94720.0,0.211146]
[1740413887878,0.09431135,94743.0,94730.0,0.0788]
[1740413888084,0.09431135,94743.0,94734.0,0.211115]
[1740413888285,0.09431135,94743.0,94734.0,0.10264569]
[1740413888819,0.09431135,94743.0,94735.0,0.158335]
[1740413889034,0.09431135,94743.0,94734.0,0.26098269]
[1740413889277,0.158316,94747.0,94734.0,0.10264569]
[1740413889485,0.001,94736.0,94734.0,0.10264569]
[1740413889782,0.158316,94747.0,94734.0,0.10264569]
[1740413889995,0.211086,94748.0,94735.0,0.003]
[1740413890192,0.001,94743.0,94735.0,0.003]
[1740413890398,0.158316,94747.0,94734.0,0.10264569]
[1740413890603,0.001,94736.0,94734.0,0.10564569]
[1740413891065,0.001,94736.0,94735.0,0.34158169]
[1740413891485,0.001,94736.0,94735.0,0.34558169]
[1740413892783,0.0017008,94746.0,94743.0,0.158322]
[1740413892983,0.0017008,94746.0,94744.0,0.158321]
[1740413893192,0.0017008,94746.0,94743.0,0.158322]
[1740413893394,0.0017008,94746.0,94735.0,0.39435969]
[1740413893600,0.0017008,94746.0,94742.0,0.157323]
[1740413893824,0.0017008,94746.0,94745.0,0.158319]
[1740413894017,0.0017008,94746.0,94745.0,0.233619]
[1740413894227,0.0027008,94746.0,94745.0,0.0753]
[1740413895735,0.0037008,94746.0,94745.0,0.0753]
[1740413896127,0.0027008,94746.0,94745.0,0.0753]
[1740413896507,0.1600188,94746.0,94745.0,0.0753]
[1740413897141,0.0017008,94746.0,94745.0,0.0753]
[1740413897363,0.3100188,94746.0,94745.0,0.0753]
[1740413897596,0.158334,94737.0,94735.0,0.0759]
[1740413897784,0.0017008,94746.0,94735.0,0.075792]
[1740413897992,0.308336,94735.0,94734.0,0.0008505]
[1740413898437,0.41098169,94735.0,94734.0,0.0008505]
[1740413898995,0.41899024,94735.0,94734.0,0.0008505]
[1740413899400,0.308363,94719.0,94718.0,0.00118041]
[1740413900205,0.41100869,94719.0,94718.0,0.00118041]
[1740413900927,0.308394,94700.0,94699.0,0.07263121]
[1740413901132,0.308408,94692.0,94691.0,0.0479]
[1740413901328,0.308408,94692.0,94691.0,0.00043176]
[1740413902923,0.309408,94692.0,94691.0,0.00443176]
[1740413903131,0.309408,94692.0,94691.0,0.00043176]
[1740413903332,0.151,94692.0,94691.0,0.00043176]
[1740413903582,0.152,94692.0,94691.0,0.00443176]
[1740413904000,0.002,94692.0,94691.0,0.08173176]
[1740413904143,0.001,94692.0,94691.0,0.07773176]
[1740413904343,0.02145113,94695.0,94691.0,0.07773176]
[1740413904636,0.001,94692.0,94691.0,0.18437745]
[1740413904820,0.001,94692.0,94691.0,0.34278645]
[1740413904993,0.001,94692.0,94691.0,0.08173176]
[1740413905807,0.09470523,94707.0,94691.0,0.18185577]
[1740413906022,0.09470523,94707.0,94693.0,0.211207]
[1740413906249,0.09470523,94707.0,94694.0,0.10264569]
[1740413906447,0.09470523,94707.0,94696.0,0.0773]
[1740413906607,0.09470523,94707.0,94697.0,0.10312392]
[1740413906812,0.25308923,94707.0,94697.0,0.10264569]
[1740413907024,0.09470523,94707.0,94697.0,0.10264569]
[1740413907248,0.09570523,94707.0,94697.0,0.10264569]
[1740413908061,0.09570523,94707.0,94698.0,0.00143009]
[1740413908288,0.09570523,94707.0,94696.0,0.0773]
[1740413908491,0.09570523,94707.0,94697.0,0.10264569]
[1740413909007,0.09670523,94707.0,94697.0,0.10964569]
[1740413909211,0.09570523,94707.0,94700.0,0.158393]
[1740413909366,0.09570523,94707.0,94698.0,0.158396]
[1740413909563,0.09570523,94707.0,94696.0,0.0843]
[1740413909564,0.158384,94706.0,94696.0,0.0843]
[1740413909777,0.211176,94708.0,94696.0,0.0773]
[1740413909978,0.15,94710.0,94696.0,0.0773]
[1740413910190,0.211151,94719.0,94699.0,0.08443896]
[1740413910355,0.158362,94720.0,94701.0,0.211191]
[1740413910535,0.158382,94708.0,94700.0,0.10264569]
[1740413910741,0.15,94728.0,94696.0,0.0843]
[1740413910955,0.21116,94715.0,94697.0,0.10264569]
[1740413911160,0.158376,94711.0,94697.0,0.10264569]
[1740413911428,0.00184778,94724.0,94697.0,0.10264569]
[1740413911636,0.15,94722.0,94696.0,0.0843]
[1740413911852,0.158399,94697.0,94696.0,0.0843]
[1740413912275,0.158399,94697.0,94696.0,0.007]
[1740413912719,0.158408,94692.0,94691.0,0.00128226]
[1740413913499,0.308408,94692.0,94691.0,0.00128226]
[1740413913705,0.41105369,94692.0,94691.0,0.00128226]
[1740413913858,0.41205369,94692.0,94691.0,0.00828226]
[1740413914363,0.73855369,94692.0,94691.0,0.00828226]
[1740413914610,0.73755369,94692.0,94691.0,0.00128226]
[1740413914839,0.84019938,94692.0,94691.0,0.00728226]
[1740413915044,0.73855369,94692.0,94691.0,0.00728226]
[1740413916211,0.73755369,94692.0,94691.0,0.00128226]
[1740413916419,0.73755369,94692.0,94691.0,0.00528226]
[1740413916817,0.73755369,94692.0,94691.0,0.00128226]
[1740413917222,0.73755369,94692.0,94691.0,0.00428226]
[1740413917423,0.84019938,94692.0,94691.0,0.00128226]
[1740413917875,0.84019938,94692.0,94691.0,0.00228226]
[1740413918085,0.30844,94673.0,94671.0,0.0004]
[1740413918257,0.41108569,94673.0,94671.0,0.0004]
[1740413919472,0.43246245,94673.0,94671.0,0.0004]
[1740413919886,0.53510814,94673.0,94671.0,0.0004]
[1740413920109,0.53510814,94673.0,94672.0,0.00407]
[1740413920236,0.43246245,94673.0,94672.0,0.00407]
[1740413920447,0.44051939,94673.0,94672.0,0.00407]
[1740413922400,0.44051939,94673.0,94672.0,7e-05]
[1740413922607,0.44051939,94673.0,94672.0,0.00507]
[1740413923021,0.44051939,94673.0,94672.0,7e-05]
[1740413923248,0.44051939,94673.0,94672.0,0.00507]
[1740413923432,0.3378737,94673.0,94672.0,7e-05]
[1740413923953,0.33081676,94673.0,94672.0,0.00507]
[1740413924168,0.33081676,94673.0,94672.0,0.07987]
[1740413924361,0.33081676,94673.0,94672.0,0.08587]
[1740413924362,0.02337676,94673.0,94672.0,0.08587]
[1740413924783,0.18181676,94673.0,94672.0,0.08587]
[1740413924987,0.02337676,94673.0,94672.0,0.08587]
[1740413925505,0.02337676,94673.0,94672.0,0.083824]
[1740413925506,0.002,94673.0,94672.0,0.083824]
[1740413925717,0.158428,94680.0,94672.0,0.077824]
[1740413925929,0.001,94673.0,94672.0,0.084824]
[1740413926338,0.001,94673.0,94672.0,0.34591069]
[1740413926744,0.158393,94702.0,94675.0,0.211249]
[1740413926948,0.09446632,94706.0,94685.0,0.157419]
[1740413926949,0.15,94705.0,94685.0,0.157419]
[1740413927152,0.09446632,94706.0,94686.0,0.10264569]
[1740413927351,0.17179975,94696.0,94686.0,0.10264569]
[1740413927555,0.09446632,94706.0,94686.0,0.10164569]
[1740413927761,0.02099013,94701.0,94689.0,0.211217]
[1740413927915,0.02099013,94701.0,94688.0,0.0462]
[1740413928151,0.211195,94700.0,94688.0,0.0462]
[1740413928353,0.02099013,94701.0,94689.0,0.0782]
[1740413928548,0.211182,94705.0,94689.0,0.0782]
[1740413928751,0.09446632,94706.0,94690.0,0.00143046]
[1740413929172,0.09446632,94706.0,94694.0,0.158404]
[1740413929376,0.09446632,94706.0,94690.0,0.10407615]
[1740413929549,0.09446632,94706.0,94689.0,0.0782]
[1740413929550,0.25285132,94706.0,94691.0,0.10264569]
[1740413929780,0.001,94705.0,94692.0,0.158407]
[1740413929989,0.2739357,94706.0,94692.0,0.158407]
[1740413930164,0.1155507,94706.0,94694.0,0.007]
[1740413930364,0.1165507,94706.0,94695.0,0.10264569]
[1740413930564,0.09546632,94706.0,94698.0,0.0778]
[1740413930778,0.09546632,94706.0,94699.0,0.26104069]
[1740413931011,0.001,94706.0,94699.0,0.26104069]
[1740413931227,0.001,94706.0,94699.0,0.10264569]
[1740413931770,0.001,94706.0,94699.0,0.26104069]
[1740413931995,0.002,94706.0,94699.0,0.10264569]
[1740413932220,0.001,94706.0,94705.0,0.158386]
[1740413932437,0.002,94706.0,94705.0,0.26246145]
[1740413932621,0.002,94706.0,94705.0,0.38973169]
[1740413933051,0.002,94706.0,94705.0,0.40427254]
[1740413933258,0.0017016,94707.0,94706.0,0.25312485]
[1740413933486,0.00790482,94748.0,94725.0,0.157351]
[1740413933694,0.211097,94744.0,94726.0,0.0823]
[1740413933897,0.2111,94742.0,94726.0,0.0823]
[1740413934103,0.158328,94740.0,94726.0,0.0823]
[1740413934318,0.211073,94754.0,94726.0,0.0823]
[1740413934319,0.02184643,94738.0,94728.0,0.158347]
[1740413934521,0.02184643,94738.0,94729.0,0.10264569]
[1740413934730,0.00184711,94759.0,94727.0,0.045]
[1740413934731,0.00781672,94756.0,94727.0,0.045]
[1740413934960,0.211095,94744.0,94729.0,0.00013009]
[1740413935169,0.00781672,94756.0,94729.0,0.00013009]
[1740413935382,0.211095,94744.0,94729.0,0.00013009]
[1740413935637,0.158342,94732.0,94729.0,0.00013009]
[1740413935874,0.158342,94732.0,94727.0,0.04413009]
[1740413936172,0.211095,94744.0,94727.0,0.04422585]
[1740413936400,0.158343,94732.0,94729.0,0.007]
[1740413936629,0.158343,94732.0,94727.0,0.04422585]
[1740413936851,0.211118,94734.0,94727.0,0.04422585]
[1740413937079,0.001,94732.0,94729.0,0.007]
[1740413937337,0.308344,94730.0,94729.0,0.007]
[1740413937554,0.41880977,94730.0,94729.0,0.007]
[1740413938258,0.308348,94728.0,94727.0,9.576e-05]
[1740413938480,0.41099369,94728.0,94727.0,0.00709576]
[1740413938709,0.41099369,94728.0,94727.0,9.576e-05]
[1740413938944,0.308348,94728.0,94727.0,9.576e-05]
[1740413939628,0.308348,94728.0,94727.0,0.00309576]
[1740413939843,0.308348,94728.0,94727.0,9.576e-05]
[1740413940353,0.48485988,94728.0,94727.0,0.00609576]
[1740413941328,0.158394,94700.0,94699.0,0.049]
[1740413941588,0.15,94727.0,94670.0,0.158445]
[1740413941589,0.158411,94690.0,94689.0,0.0778]
[1740413941802,0.211205,94695.0,94689.0,0.0778]
[1740413942028,0.158408,94692.0,94689.0,0.0778]
[1740413942250,0.158411,94690.0,94689.0,0.0778]
[1740413942472,0.158418,94686.0,94685.0,0.0478]
[1740413942931,0.158426,94681.0,94680.0,0.082]
[1740413943434,0.158431,94678.0,94677.0,0.00043184]
[1740413943940,0.158425,94682.0,94677.0,0.00043184]
[1740413944177,0.001,94690.0,94677.0,0.10307753]
[1740413944395,0.02194246,94688.0,94677.0,0.10307753]
[1740413944632,0.21114,94724.0,94678.0,0.18851542]
[1740413944847,0.15,94701.0,94680.0,0.0806]
[1740413945081,0.001,94686.0,94685.0,0.003]
[1740413945299,0.001,94686.0,94685.0,0.10564569]
[1740413946035,0.158401,94697.0,94685.0,0.10264569]
[1740413946279,0.001,94686.0,94685.0,0.003]
[1740413946539,0.001,94686.0,94685.0,0.10564569]
[1740413947018,0.15,94701.0,94685.0,0.10264569]
[1740413947271,0.15,94701.0,94680.0,0.0806]
[1740413947537,0.211222,94687.0,94680.0,0.0806]
[1740413947797,0.15,94706.0,94680.0,0.0806]
[1740413948031,0.21123,94684.0,94680.0,0.0806]
[1740413948273,0.211208,94694.0,94680.0,0.0806]
[1740413948532,0.158418,94686.0,94685.0,0.003]
[1740413948754,0.158426,94681.0,94680.0,0.0806]
[1740413949007,0.001,94706.0,94680.0,0.0836]
[1740413949242,0.158423,94684.0,94680.0,0.0806]
[1740413949455,0.158423,94684.0,94680.0,0.0836]
[1740413949928,0.158423,94684.0,94680.0,0.0806]
[1740413950161,0.001,94681.0,94680.0,0.0836]
[1740413951316,0.211229,94684.0,94680.0,0.0806]
[1740413951612,0.158421,94685.0,94680.0,0.0806]
[1740413951809,0.158426,94681.0,94680.0,0.0836]
[1740413952047,0.158426,94681.0,94680.0,0.0806]
[1740413952285,0.158426,94681.0,94680.0,0.0836]
[1740413952286,0.159426,94681.0,94680.0,0.0836]
[1740413952524,0.159426,94681.0,94680.0,0.0806]
[1740413952766,0.159426,94681.0,94680.0,0.0846]
[1740413953023,0.158426,94681.0,94680.0,0.0806]
[1740413953486,0.159426,94681.0,94680.0,0.0846]
[1740413954447,0.159426,94681.0,94680.0,0.004]
[1740413954888,0.211226,94685.0,94677.0,0.00043184]
[1740413955106,0.158426,94681.0,94680.0,0.0008505]
[1740413955352,0.309426,94681.0,94680.0,0.0038505]
[1740413955553,0.309426,94681.0,94680.0,0.0008505]
[1740413955760,0.309426,94681.0,94680.0,0.0038505]
[1740413955970,0.002,94681.0,94680.0,0.0038505]
[1740413956189,0.211207,94694.0,94680.0,0.0038505]
[1740413956190,0.211224,94686.0,94680.0,0.0008505]
[1740413956417,0.001,94681.0,94680.0,0.0038505]
[1740413956646,0.001,94681.0,94680.0,0.15052683]
[1740413956861,0.001,94681.0,94680.0,0.23119619]
[1740413957095,0.001,94681.0,94680.0,0.1285505]
[1740413958133,0.002,94681.0,94680.0,0.1355505]
[1740413958341,0.001,94681.0,94680.0,0.1285505]
[1740413958545,0.001,94681.0,94680.0,0.23119619]
[1740413958786,0.002,94681.0,94680.0,0.23819619]
[1740413962158,0.002,94681.0,94680.0,0.1355505]
[1740413962377,0.160426,94681.0,94680.0,0.1355505]
[1740413962852,0.002,94681.0,94680.0,0.1355505]
[1740413963094,0.160426,94681.0,94680.0,0.1355505]
[1740413963708,0.160426,94681.0,94680.0,0.0899505]
[1740413963923,0.160426,94681.0,94680.0,0.0078505]
[1740413964593,0.310426,94681.0,94680.0,0.0078505]
[1740413965002,0.308426,94681.0,94680.0,0.0008505]
[1740413965384,0.309426,94681.0,94680.0,0.0078505]
[1740413965584,0.309426,94681.0,94680.0,0.0008505]
[1740413965791,0.309426,94681.0,94680.0,0.0078505]
[1740413966156,0.310426,94681.0,94680.0,0.0078505]
[1740413967676,0.4048371,94681.0,94680.0,0.0078505]
[1740413967898,0.310426,94681.0,94680.0,0.0078505]
[1740413975742,0.41307169,94681.0,94680.0,0.0078505]
[1740413975946,0.308431,94678.0,94677.0,3.4e-07]
[1740413976169,0.158463,94659.0,94641.0,0.0478]
[1740413976326,0.158463,94659.0,94647.0,0.0788]
[1740413977033,0.17798853,94659.0,94647.0,0.0788]
[1740413977990,0.17898853,94659.0,94647.0,0.0788]
[1740413978797,0.32898853,94659.0,94647.0,0.0788]
[1740413979247,0.32798853,94659.0,94647.0,0.0788]
[1740413979396,0.32898853,94659.0,94647.0,0.0788]
[1740413980967,0.37063012,94659.0,94647.0,0.0788]
[1740413981168,0.37163012,94659.0,94647.0,0.0788]
[1740413981594,0.32898853,94659.0,94647.0,0.0788]
[1740413982620,0.17898853,94659.0,94647.0,0.0788]
[1740413983173,0.02052553,94659.0,94648.0,0.08443896]
[1740413983396,0.001,94659.0,94649.0,0.00143183]
[1740413983613,0.001,94659.0,94658.0,0.22649669]
[1740413983753,0.001,94659.0,94658.0,0.39950254]
[1740413983970,0.09446632,94673.0,94672.0,0.158441]
[1740413984179,0.09446632,94673.0,94672.0,0.39712754]
[1740413984589,0.09446632,94673.0,94672.0,0.39612754]
[1740413985175,0.09546632,94673.0,94672.0,0.40312754]
[1740413986400,0.09546632,94673.0,94672.0,0.23014569]
[1740413987028,0.09546632,94673.0,94672.0,0.1275]
[1740413988325,0.001,94673.0,94672.0,0.1275]
[1740413988526,0.15944,94673.0,94672.0,0.1275]
[1740413989112,0.001,94673.0,94672.0,0.1275]
[1740413989360,0.15944,94673.0,94672.0,0.1275]
[1740413989701,0.15944,94673.0,94672.0,0.007]
[1740413990688,0.158455,94664.0,94663.0,0.0786]
[1740413991684,0.211267,94667.0,94658.0,0.000851]
[1740413991886,0.158463,94660.0,94658.0,0.10349669]
[1740413992175,0.001,94664.0,94658.0,0.10349669]
[1740413992473,0.158456,94663.0,94658.0,0.10349669]
[1740413992774,0.211275,94663.0,94658.0,0.000851]
[1740413992971,0.21128,94662.0,94658.0,0.000851]
[1740413993182,0.158463,94659.0,94658.0,0.000851]
[1740413994063,0.158463,94659.0,94658.0,0.006851]
[1740413994064,0.17730303,94659.0,94658.0,0.006851]
[1740413994257,0.17730303,94659.0,94658.0,0.000851]
[1740413994258,0.01884003,94659.0,94658.0,0.000851]
[1740413994670,0.001,94659.0,94658.0,0.006851]
[1740413995046,0.01996898,94659.0,94658.0,0.087051]
[1740413995250,0.001,94659.0,94658.0,0.087051]
[1740413996770,0.159463,94659.0,94658.0,0.087051]
[1740413996929,0.17889774,94659.0,94658.0,0.087051]
[1740413998454,0.001,94659.0,94658.0,0.087051]
[1740413998824,0.159463,94659.0,94658.0,0.087051]
[1740413999029,0.001,94659.0,94658.0,0.087051]
[1740413999232,0.001,94659.0,94658.0,0.23689669]
[1740413999980,0.00075406,94659.0,94658.0,0.40029763]
[1740414000188,0.00075406,94659.0,94658.0,0.72269763]
[1740414001374,0.09489804,94678.0,94661.0,0.211278]
[1740414001584,0.09489804,94678.0,94672.0,0.01454085]
[1740414001785,0.09489804,94678.0,94672.0,0.26108669]
[1740414001959,0.09489804,94678.0,94672.0,0.10264569]
[1740414002374,0.211255,94672.0,94651.0,0.01068]
[1740414002575,0.211251,94674.0,94659.0,0.10264569]
[1740414002822,0.211255,94672.0,94659.0,0.10264569]
[1740414003028,0.15845,94667.0,94660.0,0.0763]
[1740414003185,0.211252,94674.0,94661.0,0.10264569]
[1740414003386,0.158442,94672.0,94661.0,0.10264569]
[1740414003702,0.158448,94668.0,94661.0,0.10264569]
[1740414003881,0.0026994,94673.0,94661.0,0.10264569]
[1740414004066,0.1611394,94673.0,94662.0,0.00143134]
[1740414004268,0.0016994,94673.0,94662.0,0.10264569]
[1740414004471,0.158445,94670.0,94662.0,0.10264569]
[1740414004813,0.211255,94672.0,94663.0,0.10264569]